{"text_format":"2","workbook":"xlsx","n_sheets":10,"sheets":["Vkupno","1. Hidromehanicka Oprema","2. Priklucen Vodovod","3. Pumpna Stanica","4. Taloznik za pesok so resetka","5. SBR_basen","6. Upravna Kukja","7. Fekalna","8. Elektrika","9. Avtomatika"],"not_rendered":{"charts":0,"images":0,"macros":0,"external_links":0,"defined_names":6,"comments":0,"pivot_tables":0},"unopened":[],"bounds":{"document_bytes":16777216,"sheet_cells":100000,"run_cost":"one","rows_first":2000,"rows_last":500,"rows_between":2000,"halvings":0,"cell_chars":16384,"cell_head_chars":4096},"cells_cut":0,"cells_raw":0,"read":"whole","date_system":"1900"}

{"sheet":"Vkupno","index":0,"n_rows":14,"n_cols":6,"rows_kept":14,"cut":false,"hidden":false,"merged":[[6,0,6,4],[7,0,7,4],[8,0,8,4],[9,0,9,4],[10,0,10,4],[13,0,13,4],[0,0,0,5],[1,0,1,4],[2,0,2,4],[3,0,3,4],[4,0,4,4],[5,0,5,4]]}
[" ВКУПНА PEKAПИТУЛАЦИЈА"]
[]
["I. ХИДРОМЕХАНИЧКА ОПРЕМА"]
["II. ПРИКЛУЧЕН ВОДОВОД"]
["III. ПУМПНА СТАНИЦА"]
["IV. ТАЛОЖНИК ЗА ПЕСОК СО РЕШЕТКА"]
["V. SBR БАЗЕН"]
["VI. УПРАВНА КУЌА"]
["VII. ФЕКАЛНА КАНАЛИЗАЦИЈА"]
["VIII. ЕЛЕКТРИЧНИ ИНСТАЛАЦИИ"]
["IX. АВТОМАТИКА"]
[]
[]
["СЕ ВКУПНО:",{"$nulls":4},{"$f":"SUM(F3:F11)","v":0}]

{"sheet":"1. Hidromehanicka Oprema","index":1,"n_rows":26,"n_cols":6,"rows_kept":26,"cut":false,"hidden":false,"merged":[[11,0,15,0],[25,0,25,4],[16,0,17,0],[0,0,0,5],[1,0,1,5],[4,0,4,5]]}
[" ПРЕДМЕР СО ПРЕСМЕТКА"]
["За Хидромеханичка опрема"]
[]
["Ред. Бр.","ОПИС НА ПОЗИЦИЈАТА ","Единечна мера","Количина","Единечна цена","Вкупно"]
["Хидромеханичка опема"]
[1,"Набавка, транспорт и вградување на автоматска решетка со електромотор со јачина од 3,00 kWh, во се према технички цртеж","парче",1,null,{"$f":"D6*E6","v":0}]
[2,"Набавка  на  потопна пумпа за отпадни со карактеристики: Q=0-350 (l/min), H=10,4-3,2 (m), N=0,55 KW  и сета потребна фасонерија за истата со  монтажа и водилки. Пресметка по ком набавена и монтирана пумпа. Види графички прилог.","парче",5,null,{"$f":"D7*E7","v":0}]
[3,"Набавка  на  милна потопна пумпа со карактеристики:  Q=100-650 (l/min), H=11,5-1,0 (m), N=1,50 KW  и сета потребна фасонерија за истата со  монтажа и водилки. Пресметка по ком набавена и монтирана пумпа.Види графички прилог.","парче",2,null,{"$f":"D8*E8","v":0}]
[4,"Набавка  на  центрифугална пумпа со карактеристики: Q=50-260 (l/min), H=34-17,5 (m), N=1,30 KW  и сета потребна фасонерија за истата со  монтажа. Пресметка по ком набавена и монтирана пумпа. Види графички прилог.","парче",1,null,0]
[5,"Набавка, транспорт и монтажа на компресор за воздух со јачина на мотор од 2.2 kW","парче",2,null,0]
[6,"Набавка, транспорт и вградување на систем за микро филтрација со димензии на конструкцијата 2.0х2.4х1.5 м, изработена од челични профили 50/50/5 мм, со соодветна заштита, со вградени ламеларни микро филтри со вкупен капацитет од 10 м3/х, со пори на филтрација 0,01 мм, од материјал поливинилидин дифлорид (PVDF)","парче",1,null,{"$f":"D11*E11","v":0}]
[7,"Набавка, транспорт и монтажа на PE100  цевки  PN 10 бар  со спојни материјали, фасонски делови др. Пресметка по 1м' монтирана и испитана цевка. "]
[null," - HDPE OD32mm","m",20,null,{"$f":"D13*E13","v":0}]
[null," - HDPE OD50mm","m",30,null,{"$f":"D14*E14","v":0}]
[null," - HDPE OD75mm","m",10,null,{"$f":"D15*E15","v":0}]
[null," - HDPE OD110mm","m",22,null,{"$f":"D16*E16","v":0}]
[8,"Набавка, транспорт и монтажа на  цевки од нерѓосувачки челик  PN 10 бар  со спојни материјали, фасонски делови др. Пресметка по 1м' монтирана и испитана цевка. "]
[null," - DN 60,3/2 mm","m",5,null,{"$f":"D18*E18","v":0}]
[9,"Набавка и транспорт на пластично буре со капацитет 100 л, со растор натриум хипо хлорид 500-1000 ppm комплет со дозирка","парче",1,null,0]
[10,"Набавка, транспорт и вградување на водомер ДН50 мм","парче",1,null,0]
[11,"Набавка, транспорт и вградување на плоснат засун ДН80 мм, ПН 10 бари","парче",2,null,0]
[12,"Набавка, транспорт и вградување на пловак- нивометар за отпадни води","парче",3,null,0]
[13,"Набавка, транспорт и вградување на електро магнетен вентил ДН80 мм","парче",2,null,0]
[14,"Набавка, транспорт и поставување на контејнер","парче",1,null,0]
[15,"Набавка и танспорт на 3000 L (3м3) аеробни ганулирани микроорганизми за потребите за третман на фекални отпадни води со вклучено упатсво за употреба на стартер културата. Аеробните гранули (АГ) во себе треба да содржат најмалку 109 Cfu/mL (да се достави лабораториски извештај). Со доставата на АГ да се достави и извештај со микробиолошкиот состав на растворот со АГ. pH вредноста на аеробната микробна култура не смее да биде повисока од 8,5. АГ треба да имаат способност да разградуваат целулоза (тоалетна хартија) детергенти, сапуни, сретства зе хигиена (прашоци за перење) и др. АГ не смеат да ја загрозуваат човековата средина, не смеат да содржат штетни супстанции, тешки метали и други опасни материи, не смеат да го загрозуваат здравјето на луѓето, животните  и растенијата, да не содржат штетни материи. Во случаеви на хаварија, да се обезбеди гаранција за можност на доставување на АГ во наредните 5 години.",null,1,null,0]
["Вкупно хидромeханичка опрема:",{"$nulls":4},{"$f":"SUM(F6:F25)","v":0}]

{"sheet":"2. Priklucen Vodovod","index":2,"n_rows":25,"n_cols":6,"rows_kept":25,"cut":false,"hidden":false,"merged":[[8,0,8,5],[24,0,24,4],[0,0,0,5],[1,0,1,5],[10,0,12,0],[23,0,23,4],[4,0,4,5],[5,0,5,5],[7,0,7,4],[17,0,18,0]]}
[" ПРЕДМЕР СО ПРЕСМЕТКА"]
["За Приклучен водовод"]
[]
["Ред. Бр.","ОПИС НА ПОЗИЦИЈАТА ","Единечна мера","Количина","Единечна цена","Вкупно"]
["ВОДОВОД"]
["Приклучок"]
[1,"Изработка приклучок на постоечки водовод, комплет со вентил Ф32 мм  и огрлица ","парче",1,null,{"$f":"D7*E7","v":0}]
["Вкупно :",{"$nulls":4},{"$f":"SUM(F7)","v":0}]
["Надворешен водовод"]
[1,"Облежување траса на ров за ископ","m'",33.1,null,{"$f":"D10*E10","v":0}]
[2,"Комбиниран ископ на земја од III и IV категорија, за положување на цевковод  во ров со ширина до 0,80м и длабочина од 0-2.0m                                                вкупно V=31,78m3 од тоа:                                                             "," "," ",null," "]
[null,"машински 80%","m3",{"$f":"0.8*31.78","v":25.424000000000003},null,{"$f":"D12*E12","v":0}]
[null,"рачен 20%","m3",{"$f":"0.2*31.78","v":6.3560000000000008},null,{"$f":"D13*E13","v":0}]
[3,"Планирање на дното ровот со точност ±2см","m2",{"$f":"D10*0.8","v":26.480000000000004},null,{"$f":"D14*E14","v":0}]
[4,"Набавка и распостелување на песок по дно на ровот во дебелина од 10cm.","m3",{"$f":"D10*0.8*0.1","v":2.6480000000000006},null,{"$f":"D15*E15","v":0}]
[5,"Затрупување на ровот во слоеви до 30 cm над темето на цевката со песок, со рачно набивање.","m3",{"$f":"0.33*0.8*D10","v":8.7384000000000004},null,0]
[6,"Дозатрупување на ровот во слоеви од 30cm со чакалесто песоклив материјал од наоѓалиште  (природен или дробеник), со рачно или машинско набивање.","m3",{"$f":"31.78-(D15+D16)","v":20.393599999999999},null,0]
[7,"Набавка, транспорт и монтажа на PE100  цевки  PN 10бар  со спојни материјали, фасонски делови др. Пресметка по 1м' монтирана и испитана цевка. "]
[null," - HDPE OD32mm","m",{"$f":"D10","v":33.1},null,{"$f":"D19*E19","v":0}]
[8,"Дезинфекција и хидраулично испитување на мрежата","m",{"$f":"D19","v":33.1},null,{"$f":"D20*E20","v":0}]
[9,"Одвоз на вишок земја од ископ во депонија на одалеченост од 10km","m3",{"$f":"D15+D16","v":11.386400000000002},null,0]
[10,"Набавка и вградување на баштански  хидрант ф 1 '' комплет со лиеножелезна овална капа  Пресметка по вградено парче.","парче",1,null,0]
[11,"Комплет изработка на водомерна шахта со димензии 1,0 х 1,2 (внатрешни) со дебелина на ѕидови од 15 см и длабочина 1,2 м. Во шахтата да се предвиди вгадување на два пропусни вентили Ф3/4“ и водомер Ф3/4“Да се предвиди и вградување на капак Ф600 мм","парче",1,null,0]
["Вкупно:",{"$nulls":4},{"$f":"SUM(F10:F23)","v":0}]
["Вкупно доводен водовод:",{"$nulls":4},{"$f":"F24+F8","v":0}]

{"sheet":"3. Pumpna Stanica","index":3,"n_rows":91,"n_cols":6,"rows_kept":91,"cut":false,"hidden":false,"merged":[[29,1,33,1],[4,0,4,1],[5,1,9,1],[0,0,0,5],[1,0,1,5],[13,1,17,1],[18,1,22,1],[23,1,26,1],[27,0,27,4],[28,0,28,1],[53,0,53,4],[54,0,54,3],[55,1,58,1],[59,1,64,1],[34,1,38,1],[39,1,43,1],[44,1,47,1],[90,0,90,4],[65,1,68,1],[69,1,74,1],[75,1,79,1],[80,1,83,1],[84,1,88,1],[89,0,89,4]]}
[" ПРЕДМЕР СО ПРЕСМЕТКА"]
["За Пумпна станица "]
[]
["Ред. Бр.","ОПИС НА ПОЗИЦИЈАТА ","Единечна мера","Количина","Единечна цена","Вкупно"]
["                 I.Земјани работи",null," "," "," "," "]
[1,"Машински ископ и рачен докоп на земја III категорија од темелната јама на црпниот бунар со полагање на земјата околу јамата и буткање со булдожер до 50м. Пресметка по м3 ископана земја. "," "," "," "," "]
[" ",null," "," "," "," "]
[" ",null," "," "," "," "]
[" ",null," "," "," "," "]
[" ",null," "," "," "," "]
[" ","Вкупен ископ  V =20.7 м3"," "," "," "," "]
["     ","Машнски ископ 80%V","м3",{"$f":"20.7*0.8","v":16.559999999999999},null,{"$f":"D12*E12","v":0}]
["            ","Рачен докоп       20% V","м3",{"$f":"20.7*0.2","v":4.1399999999999997},null,{"$f":"D13*E13","v":0}]
[2,"Разастирање на песковито шљунковит материјал по дното на бунарот за подлога дебела 30см со набивање на материјалот. Пресметка по м3 вграден материјал."," "," ",null," "]
[" ",null," "," ",null," "]
[" ",null," "," ",null," "]
[" ",null," "," ",null," "]
[" ",null,"м3",1.47,null,{"$f":"D18*E18","v":0}]
[3,"Машинско и рачно затрпување на бунарот по спуштање на цевките со земја од ископот со набивање во слоеви дебели до 50см. Пресметка по м3 вградена и набиена земја. "," "," ",null," "]
[" ",null," "," ",null," "]
[" ",null," "," ",null," "]
[" ",null," "," ",null," "]
[" ",null,"м3",10.1,null,{"$f":"D23*E23","v":0}]
[4,"Машински утовар во камион на вишокот на земја и транспорт до депонија одалечена од местото до 5км. Пресметка по м3 изнесена земја."," "," ",null," "]
[" ",null," "," ",null," "]
[" ",null," "," ",null," "]
[" ",null,"м3",10.6,null,{"$f":"D27*E27","v":0}]
["                                                                                                           Вкупно I :",{"$nulls":4},{"$f":"SUM(F12:F27)","v":0}]
["                II. Бетонски работи",null," "," "," "," "]
[5,"Машинско спремање на бетон МБ10 и вградување во дното на бунарот за израмнување (подлога d=5 cm) со набивање на бетонот. Пресметка по м3 вграден бетон."," "," "," "," "]
[" ",null," "," "," "," "]
[" ",null," "," "," "," "]
[" ",null," "," "," "," "]
[" ",null,"м3",0.25,null,{"$f":"D34*E34","v":0}]
[6,"Машинско спремање на бетон МБ30 и вградување во дното на бунарот со оплатирање и набивање. Пресметка по м3 вграден бетон."," "," ",null," "]
[" ",null," "," ",null," "]
[" ",null," "," ",null," "]
[" ",null," "," ",null," "]
[" ",null,"м3",0.98,null,{"$f":"D39*E39","v":0}]
[7,"Машинско спремање на бетон МБ30 и вградување во покривната плоча на бунарот со оплатирање и набивање. Пресметка по м3 вграден бетон."," "," ",null," "]
[" ",null," "," ",null," "]
[" ",null," "," ",null," "]
[" ",null," "," ",null," "]
[" ",null,"м3",0.76,null,{"$f":"D44*E44","v":0}]
[8,"Се вкупно вградена арматура во дното и покривната плоча на бунарот. Пресметка по кгр вградено железо."]
[]
[]
[]
[null,"Глатка арматура d<12мм"]
[null,"ф 8мм                    Ga-240/3600","кгр.",20,null,{"$f":"D50*E50","v":0}]
[null,"Ребраста арматура d<12мм"," "," ",null," "]
[null,"ф8 мм "," "," ",null," "]
[null,"ф10мм ","кгр.",180,null,{"$f":"D53*E53","v":0}]
["                                                                                                          Вкупно II :",{"$nulls":4},{"$f":"SUM(F39:F53)","v":0}]
["                III. Ѕидарско занатски и монтажни работи"]
[9,"Набавка на армирано бетонски елементи за шахта ф1500 mm, L=2,50 m. Пресметка по ком. набавен и монтиран елемент."]
[" "]
[" "]
[" ",null,"ком.",1,null,{"$f":"D59*E59","v":0}]
[10,"Заполнување на споевите измеѓу арм. бет. елементи на бунарот со двокомпонентен трајно еластичен полусулфиден кит за спречување продор на вода низ истите. Пресметка м' обработен спој "," "," ",null," "]
[" ",null," "," ",null," "]
[" ",null," "," ",null," "]
[" ",null," "," ",null," "]
[" ",null," "," ",null," "]
[" ",null,"м'",18.84,null,{"$f":"D65*E65","v":0}]
[11,"Фино малтерисување на црпниот бунар од внатрешната страна со цементен малтер. Пресметка по м2 малтерисана внатрешна површина на бунарот."," "," ",null," "]
[" ",null," "," ",null," "]
[" ",null," "," ",null," "]
[" ",null,"м2",31.46,null,{"$f":"D69*E69","v":0}]
[12,"Премачкување на внатрешната површина на бунарот со еластична хидроизолација на акрилна основа за водонепропусност на бунарот. Пресметка по м2 премачкана површина."]
[]
[]
[]
[]
[null,null,"м2",31.46,null,{"$f":"D75*E75","v":0}]
[13,"Набавка  на  милна потопна пумпа со карактеристики:                                                                                                                                                                                                                                                                                                      Q=100-650 (l/min), H=11,5-1 (m), N=1,50 KW  и сета потребна фасонерија за истата со  монтажа во црпниот бунар заедно со автоматика. Пресметка по ком набавена и монтирана пумпа.Види графички прилог."]
[" "]
[" "]
[" "]
[" ",null,"ком.",2,null,{"$f":"D80*E80","v":0}]
[14,"Набавка на качувалки од округло железо ф20мм и монтажа во бунарот на пумпната станица. Пресметка по ком набавени и монтирани качувалки."]
[" "]
[" "]
[" ",null,"ком.",8,null,{"$f":"D84*E84","v":0}]
[15,"Набавка транспорт и монтажа на правоаголен лиеножелезен капак 1,1x0,6m со рамка и носивост 400 kN. Пресметка по ком. набавен и монтиран капак."," "," ",null," "]
[" ",null," "," ",null," "]
[" ",null," "," ",null," "]
[" ",null," "," ",null," "]
[" ",null,"ком.",1,null,{"$f":"D89*E89","v":0}]
["                                                                                                         Вкупно III :",{"$nulls":4},{"$f":"SUM(F56:F89)","v":0}]
["                                                                                                 Се вкупно I- III :",{"$nulls":4},{"$f":"F90+F54+F28","v":0}]

{"sheet":"4. Taloznik za pesok so resetka","index":4,"n_rows":93,"n_cols":6,"rows_kept":93,"cut":false,"hidden":false,"merged":[[92,0,92,4],[69,1,74,1],[75,1,79,1],[80,1,84,1],[85,1,89,1],[91,0,91,4],[65,1,68,1],[23,1,26,1],[27,0,27,4],[28,0,28,1],[29,1,33,1],[34,1,38,1],[39,1,43,1],[44,1,47,1],[53,0,53,4],[54,0,54,3],[55,1,58,1],[59,1,64,1],[18,1,22,1],[0,0,0,5],[1,0,1,5],[4,0,4,1],[5,1,9,1],[13,1,17,1]]}
[" ПРЕДМЕР СО ПРЕСМЕТКА"]
["За Таложник за песок со решетка"]
[]
["Ред. Бр.","ОПИС НА ПОЗИЦИЈАТА ","Единечна мера","Количина","Единечна цена","Вкупно"]
["                 I.Земјани работи",null," "," "," "," "]
[1,"Машински ископ и рачен докоп на земја III категорија од темелната јама на црпниот бунар со полагање на земјата околу јамата и буткање со булдожер до 50м. Пресметка по м3 ископана земја. "," "," "," "," "]
[" ",null," "," "," "," "]
[" ",null," "," "," "," "]
[" ",null," "," ",null," "]
[" ",null," "," ",null," "]
[" ","Вкупен ископ  V =20.7 м3"," "," ",null," "]
["     ","Машнски ископ 80%V","м3",{"$f":"20.7*0.8","v":16.559999999999999},null,{"$f":"D12*E12","v":0}]
["            ","Рачен докоп       20% V","м3",{"$f":"20.7*0.2","v":4.1399999999999997},null,{"$f":"D13*E13","v":0}]
[2,"Разастирање на песковито шљунковит материјал по дното на бунарот за подлога дебела 30см со набивање на материјалот. Пресметка по м3 вграден материјал."," "," ",null," "]
[" ",null," "," ",null," "]
[" ",null," "," ",null," "]
[" ",null," "," ",null," "]
[" ",null,"м3",1.47,null,{"$f":"D18*E18","v":0}]
[3,"Машинско и рачно затрпување на бунарот по спуштање на цевките со земја од ископот со набивање во слоеви дебели до 50см. Пресметка по м3 вградена и набиена земја. "," "," ",null," "]
[" ",null," "," ",null," "]
[" ",null," "," ",null," "]
[" ",null," "," ",null," "]
[" ",null,"м3",10.1,null,{"$f":"D23*E23","v":0}]
[4,"Машински утовар во камион на вишокот на земја и транспорт до депонија одалечена од местото до 5км. Пресметка по м3 изнесена земја."," "," ",null," "]
[" ",null," "," ",null," "]
[" ",null," "," ",null," "]
[" ",null,"м3",10.6,null,{"$f":"D27*E27","v":0}]
["                                                                                                           Вкупно I :",{"$nulls":4},{"$f":"SUM(F12:F27)","v":0}]
["                II. Бетонски работи",null," "," "," "," "]
[5,"Машинско спремање на бетон МБ10 и вградување во дното на бунарот за израмнување (подлога d=5 cm) со набивање на бетонот. Пресметка по м3 вграден бетон."," "," "," "," "]
[" ",null," "," "," "," "]
[" ",null," "," "," "," "]
[" ",null," "," ",null," "]
[" ",null,"м3",0.25,null,{"$f":"D34*E34","v":0}]
[6,"Машинско спремање на бетон МБ30 и вградување во дното на бунарот со оплатирање и набивање. Пресметка по м3 вграден бетон."," "," ",null," "]
[" ",null," "," ",null," "]
[" ",null," "," ",null," "]
[" ",null," "," ",null," "]
[" ",null,"м3",5,null,{"$f":"D39*E39","v":0}]
[7,"Машинско спремање на бетон МБ30 и вградување во покривната плоча на бунарот со оплатирање и набивање. Пресметка по м3 вграден бетон."," "," ",null," "]
[" ",null," "," ",null," "]
[" ",null," "," ",null," "]
[" ",null," "," ",null," "]
[" ",null,"м3",0.76,null,{"$f":"D44*E44","v":0}]
[8,"Се вкупно вградена арматура во дното и покривната плоча на бунарот. Пресметка по кгр вградено железо."]
[]
[]
[]
[null,"Глатка арматура d<12мм"]
[null,"ф 8мм                    Ga-240/3600","кгр.",20,null,{"$f":"D50*E50","v":0}]
[null,"Ребраста арматура d<12мм"," "," ",null," "]
[null,"ф8 мм "," "," ",null," "]
[null,"ф10мм ","кгр.",400,null,{"$f":"D53*E53","v":0}]
["                                                                                                          Вкупно II :",{"$nulls":4},{"$f":"SUM(F39:F53)","v":0}]
["                III. Ѕидарско занатски и монтажни работи"]
[9,"Набавка на армирано бетонски елементи за шахта ф1500 mm, L=2,50 m. Пресметка по ком. набавен и монтиран елемент."]
[" "]
[" "]
[" ",null,"ком.",1,null,{"$f":"D59*E59","v":0}]
[10,"Заполнување на споевите измеѓу арм. бет. елементи на бунарот со двокомпонентен трајно еластичен полусулфиден кит за спречување продор на вода низ истите. Пресметка м' обработен спој "," "," ",null," "]
[" ",null," "," ",null," "]
[" ",null," "," ",null," "]
[" ",null," "," ",null," "]
[" ",null," "," ",null," "]
[" ",null,"м'",18.84,null,{"$f":"D65*E65","v":0}]
[11,"Фино малтерисување на шахтата од внатрешната страна со цементен малтер. Пресметка по м2 малтерисана внатрешна површина на бунарот."," "," ",null," "]
[" ",null," "," ",null," "]
[" ",null," "," ",null," "]
[" ",null,"м2",31.46,null,{"$f":"D69*E69","v":0}]
[12,"Премачкување на внатрешната површина на бунарот со еластична хидроизолација на акрилна основа за водонепропусност на бунарот. Пресметка по м2 премачкана површина."]
[]
[]
[]
[]
[null,null,"м2",31.46,null,{"$f":"D75*E75","v":0}]
[13,"Набавка  на  милна потопна пумпа со секачи со карактеристики:                                                                                                                                                                                                                                                                                                      Q=0-350 (l/min), H=10,4-3,2 (m), N=0,55 KW  и сета потребна фасонерија за истата со  монтажа во црпниот бунар заедно со автоматика. Пресметка по ком набавена и монтирана пумпа.Види графички прилог."]
[" "]
[" "]
[" "]
[" ",null,"ком.",1,null,{"$f":"D80*E80","v":0}]
[14,"Набавка транспорт и монтажа на правоаголен лиеножелезен капак 0,6x0,6m со рамка и носивост 400 kN. Пресметка по ком. набавен и монтиран капак."," "," ",null," "]
[" ",null," "," ",null," "]
[" ",null," "," ",null," "]
[" ",null," "," ",null," "]
[" ",null,"ком.",1,null,{"$f":"D85*E85","v":0}]
[15,"Набавка транспорт и монтажа на корпа изработена од нерѓосувачки челик со димензии  0.5х0.3х0.5 со отвори Ф30 мм поставена на два челични носачи"," "," ",null," "]
[" ",null," "," ",null," "]
[" ",null," "," ",null," "]
[" ",null," "," ",null," "]
[" ",null,"ком.",1,null,{"$f":"D90*E90","v":0}]
[16,"Набавка и вградување на армиранобетонскa ревизионa шахтa со висина од H=2.5м заедно со лиено железен капак G=160 кг за тежок сообраќај и качувалки на претходно подготвена подлога од 10cm песок.","парче",1,null,{"$f":"D91*E91","v":0}]
["                                                                                                         Вкупно III :",{"$nulls":4},{"$f":"SUM(F56:F91)","v":0}]
["                                                                                                 Се вкупно I- III :",{"$nulls":4},{"$f":"F92+F54+F28","v":0}]

{"sheet":"5. SBR_basen","index":5,"n_rows":104,"n_cols":6,"rows_kept":104,"cut":false,"hidden":false,"merged":[[79,0,80,3],[79,4,80,5],[88,0,88,2],[103,0,103,1],[40,2,40,4],[48,2,48,4],[52,2,52,4],[57,2,57,4],[73,2,73,4],[78,2,78,4],[30,0,31,0],[32,0,33,0],[34,0,35,0],[36,2,36,4],[37,2,37,5],[38,0,39,0],[13,2,13,5],[14,0,17,0],[22,2,22,4],[23,2,23,5],[24,0,25,0],[28,0,29,0],[1,0,1,5],[2,0,2,5],[4,0,4,5],[5,0,5,5],[8,2,8,5],[12,2,12,4]]}
[]
["ПРЕДМЕР - ПРЕСМЕТКА "]
["НА ГРАДЕЖНИ И ГРАДЕЖНО - ЗАНАТСКИ РАБОТИ"]
[]
["СБР БАЗЕН"]
[]
[]
["Ред. Бр.","ОПИС НА ПОЗИЦИЈАТА ","Единечна мера","Количина","Единечна цена","Вкупно"]
[null,"1. ПРЕТХОДНИ РАБОТИ"," "]
["1.1.","Оформување и организација на градилиште според шема на организација од страна на Изведувачот.","паушал",1,null,{"$f":"D10*E10","v":0}]
["1.2.","Геодетско одбележување пред почнување на ископите и по завршување на ископите во широк откоп со планирање на дното. ","м2",720,null,{"$f":"D11*E11","v":0}]
["1.3.","Чистење на постојна вегетација, со утовар,транспорт и истовар со камион до депонија на 10км.","м2",300,null,{"$f":"D12*E12","v":0}]
[" ","                              ВКУПНО 1:"," ",null,null,{"$f":"SUM(F10:F12)","v":0}]
[" ","2. ЗЕМЈЕНИ РАБОТИ"," "]
["2.1.","Машински ископ на земја од III и IV категорија, Димензиите се земени врз основа на проширувањето на ископот за поставување на оплата и косини против одрон на земјата. Ископот ќе биде изведен 20% во III категорија и 80% во IV категорија.                                                                "," "," ",null," "]
[null,"Вкупно 356,18 м3 "]
[null,"·   машински 90%","м3",{"$f":"356.18*0.9","v":320.56200000000001},null,{"$f":"D17*E17","v":0}]
[null,"·   рачен  10%","м3",{"$f":"0.1*356.18","v":35.618000000000002},null,{"$f":"D18*E18","v":0}]
["2.2.","Утовар,одвоз и истовар на ископаниот материјал вон кругот на градилиштето. Одвоз на депонија на 10 км.","м3",{"$f":"356.18-(24.75+167.16+7.83)","v":156.44},null,{"$f":"D19*E19","v":0}]
["2.3.","Набавка од сепарација,товарење, транспорт, распростирање, планирање и валирање на гранулат од  2-5 cm во слој од  30цм под плочата на објектот ","м3",24.57,null,{"$f":"D20*E20","v":0}]
["2.4.","Набавка, товарење, транспорт и распростирање на земјен материјал од најблиско позајмиште за дозатрупување на објектот.                                                                                                                                    "]
[null,null,"м3",167.16,null,{"$f":"D22*E22","v":0}]
[" ","                               ВКУПНО 2:"," ",null,null,{"$f":"SUM(F15:F22)","v":0}]
[" ","3. БЕТОНСКИ РАБОТИ"," "]
["3.1.","Бетонирање на бетонска подлога од набиен бетон МБ 25 со дебелина од 10 cm изведена под темелните плочи во мокрите комори и во сувата комора."," "," ",null," "]
[null,null,"м3",7.83,null,{"$f":"D26*E26","v":0}]
["3.2.","Изработка на армирано бетонска темелна плоча д=30 см од водонепропусен бетон МБ 30. Работите во целост да се изведат според Проектот и техничките услови за овој вид на работи.                                        "]
[null,null,"м3",23.5,null,{"$f":"D28*E28","v":0}]
["3.3.","Машинско спремање и вградување со набивање на водонепропусен бетон МБ 30 за надворешни и внатрешни ѕидови (дебелина од 30см) во двострана оплата со бетонирање на вути. Работите во целост да се изведат според Проектот и техничките услови за овој вид на работи.                                                                    "," "," ",null," "]
[null,null,"м3",52.86,null,{"$f":"D30*E30","v":0}]
["3.4.","Машинско спремање и вградување со набивање на водонепропусен бетон МБ 30 за армирано бетонски патеки над резерварот (дебелина 25 см) и  (дебелина 15 см) со оплата со потребно скеле и потпирање. Работите во целост да се изведат според Проектот и техничките услови за овој вид на работи.                                                                    "," "," ",null," "]
[null,null,"м3",2.2999999999999998,null,{"$f":"D32*E32","v":0}]
["3.5.","Машинско спремање и вградување со набивање на водонепропусен бетон МБ 30 за армирано бетонски коси скалишни плочи заедно со скалници, заедно со оплата и потребно потпирање и потребно скеле. Скалниците се со ширина 30 см и висина 15 см, а дебелината на скалишната плоча е 15 см. Работите во целост да се изведат според Проектот и техничките услови за овој вид на работи.                                                                         "]
[null,null,"м3",2.37,null,{"$f":"D34*E34","v":0}]
["3.6.","Поставување на цементна кошулица за постигнување на пад, д=4-10см, размер 1:2 на подот во коморите од резерварот."]
[null,null,"м2",63.1,null,{"$f":"D36*E36","v":0}]
[" ","                               ВКУПНО 3:"," ",null,null,{"$f":"SUM(F25:F36)","v":0}]
[" ","4. АРМИРАЧКИ РАБОТИ"," "]
["4.1.","Набавка, транспорт, чистење, сечење, виткање и монтажа на арматура во се според арматурните планови и спецификација на арматурата од проектот.                                                                                                                                                                                                                                                                            Пресметка по 1 кгр. вградена арм.                                                                      "]
[null,null,"кг.",5268.74,null,{"$f":"D40*E40","v":0}]
[" ","                               ВКУПНО 4:"," ",null,null,{"$f":"SUM(F40)","v":0}]
[null,"5. ИЗОЛАТОРСКИ РАБОТИ"]
["5.1.","Набавка, транспорт и поставување на заштита на вертикална хидроизолација со терапласт мембрана 400гр/м2 (бобичаста) со преклоп од 10см","м2",152,null,{"$f":"D43*E43","v":0}]
["5.2.","Набавка, транспорт и поставување на хоризонтална и вертикална  хидроизолација под армирано-бетонска темелна плоча и околу ѕидови на резервоар- битуменски ленти за вградување со заварување и преклоп од 10 см.","м2",152,null,{"$f":"D44*E44","v":0}]
["5.3.","Набавка, транспорт и премачкување на внатрешни површини, ѕидови, подни плочи, со двокомпонентен крут хидроизолационен премаз нанесен во 3 слоеви."]
[null,"* хоризонтална изолација                                                                                                                           * вертикална изолација ","м2",300,null,{"$f":"D46*E46","v":0}]
["5.4.","Набавка, транспорт и вградување на ПВЦ - лента (фугебанд) на работните спојки помеѓу А.Б. ѕидни платна и А.Б. плоча од типот В20 (30/20см.) сива боја во мокри комори поставен заедно со метални држачи.(Должината е зголемена за 10% заради непредвиден растур и врски.)"]
[null,null,"м'",56.8,null,{"$f":"D48*E48","v":0}]
[" ","                               ВКУПНО 7:"," ",null,null,{"$f":"SUM(F43:F48)","v":0}]
[null,"6. ФАСАДЕРСКИ РАБОТИ"]
["6.1.","Набавка, транспорт и малтерисување на надворешни надземни површини со фасадна боја која е водоотпорна, вклучувајќи и припрема на малтерисаните површини. "]
[null,null,"м2",55,null,{"$f":"D52*E52","v":0}]
[" ","                             ВКУПНО 9"," ",null,null,{"$f":"SUM(F51:F52)","v":0}]
[" ","7. БРАВАРСКИ РАБОТИ"," "," "," "," "]
[null,"Изработка на браварски позиции треба да биде во целост според Проектот и деталите на производителот на браваријата. Пред изработка на браваријата да се снимат димензиите на лице место."," "," "," "," "]
["7.1.","Набавка на материјал, изработка, транспорт и монтажа челична заштитна ограда во сувата комора, со висина 100 см, изработена од хоризонтално поставени квадратни профили 5х5см (ракохват), вертикали изработени од квадратни профили 5х5см поставени на осовинско растојание од 1м, меѓу кои има хоризонтални сегменти изработени од квадратни профили 3х3см, поставени на соодветно меѓусебно растојание. Оградата е прицврстена со соодветен број на анкерни плочки (12/12см) и штрафови за арм. бет. површини. Оградата е поставена периметрално по ободот на вертикалната површина на плочата од платформите и скалите во сувата комора. Профилите треба да се минизирани и боени со мрсна бела боја."]
[null,null,"м'",30,null,{"$f":"D57*E57","v":0}]
[" ","                               ВКУПНО 10:"," ",null,null,{"$f":"SUM(F55:F57)","v":0}]
[" ","8. ЗАШТИТНА ОГРАДА"," "," "," "," "]
["8.1.","Рачен ископ на земја во тесен обем за бетонски блокови за столбови од заштитна ограда околу објектот, со димензии 30/30см и длабочина од 80 см. Ископите се вршат на меѓусебно растојание од 2м. "," "," "," "," "]
[null,null,"м3",6,null,{"$f":"D61*E61","v":0}]
["8.2.","Рачен ископ на земја во тесен обем за бетонски блокови за столбови од влезна капија, со димензии 50/50см и длабочина од 100 см. "]
[null,null,"м3",0.5,null,{"$f":"D63*E63","v":0}]
["8.3.","Набавка, транспорт и бетонирање со МБ 30, на бетонски блокови за поставување на  метални столбови од влезната порта и ограда.                                                                     "]
[null,null,"м3",6,null,{"$f":"D65*E65","v":0}]
["8.4.","Набавка, транспорт и поставување на носиви метални столбови, изработени од метални профили 100/100/5мм со висина од 2,5м. Столбовите треба да се минизираат и да се фарбаат со сива боја во два слоја. Во цената да се вклучат и потребните капаци за затворање на профилите од горна страна (лимени плочки со квадратен пресек 100/100 мм и дебелина 3 мм).","парче",55,null,{"$f":"D66*E66","v":0}]
["8.5.","Набавка, транспорт, разнесување по должина на столбовите, затегање и закачување на плетена поцинкувана жица со висина 1.5 м. со окца 40х40см. и дијаметар на жицата 2мм.  "]
[null,null,"м'",110,null,{"$f":"D68*E68","v":0}]
["8.6.","Набавка, транспорт, разнесување по должина на столбовите, затегање на бодликава поцинкувана жица на врвот на столбот. "," "," ",null," "]
[" ","- поцинкувана жица д= 3мм во три реда.","м'",{"$f":"110*3","v":330},null,{"$f":"D70*E70","v":0}]
["8.7.","Набавка транспорт и поставување на поцинкувана жица (д=3мм), поставена дијагонално помеѓу металните столбови, односно на плетената мрежа.","м'",110,null,{"$f":"D71*E71","v":0}]
["8.8.","Набавка, транспорт и монтажа на влезна капија, двокрилна врата со димензии 350/250см. Влезната капија е изработена од хоризонтални и вертикални метални профили 10/10/2,5мм, во долната зона треба да биде поставен лим со дебелина од 3мм, а во горната зона исполна од грифовано плетиво. Во цената да се земе во предвид целиот потрбен оков (патент брави, шарки, дистанцери). Влезната капија треба да биде минизирана и фарбана во сива боја. (спецификација дадена во графички прилог)"]
[null,null,"парче",1,null,{"$f":"D73*E73","v":0}]
[" ","                             ВКУПНО 12 :"," ",null,null,{"$f":"SUM(F60:F73)","v":0}]
[" ","13. ПРИСТАПЕН ПАТ"," "," "," "," "]
["13.1.","Ископ на хумусен материјал со длабочина до 50 см за поставување на пристапен пат во локацијата на ПСОВ и одвоз на истиот на депонија со одалеченост до 10 км","м3",91.13,null,{"$f":"E76*D76","v":0}]
["13.2.","Набавка од сепарација,товарење, транспорт, распростирање, планирање и валирање на гранулат од  2-5 cm во слој од 30цм под под пристапниот пат, околу објектот, за формирање на плато со машинско набивање со избран материјал од ископ","м3",337.44,null,{"$f":"D77*E77","v":0}]
["13.3.","Набавка,транспорт и изработка на слој од 50 см од дробеник за изработка на тампонски слој ","м3",87.95,null,{"$f":"D78*E78","v":0}]
[null,"                         ВКУПНО 13:"," ",null,null,{"$f":"SUM(F76:F78)","v":0}]
["                    СЕ ВКУПНО :",null,null,null,{"$f":"SUM(F13+F23+F41+F37+F49+F53+F74+F79+F58)","v":0}]
{"$rows_empty":8}
["РЕКАПИТУЛАР"]
["Р. Бр. ","ОПИС НА ПОЗИЦИЈАТА","ЦЕНА"]
[1,"ПРЕТХОДНИ РАБОТИ",{"$f":"F13","v":0}]
[2,"ЗЕМЈЕНИ РАБОТИ",{"$f":"F23","v":0}]
[3,"БЕТОНСКИ РАБОТИ",{"$f":"F37","v":0}]
[4,"АРМИРАЧКИ РАБОТИ",{"$f":"F41","v":0}]
[5,"МАЛТЕРИСУВАЧКИ РАБОТИ",0]
[6,"МОЛЕРОФАРБАРСКИ РАБОТИ",0]
[7,"ИЗОЛАТОРСКИ РАБОТИ",{"$f":"F49","v":0}]
[8,"ПОДОПОЛАГАЧКИ РАБОТИ",0]
[9,"ФАСАДЕРСКИ РАБОТИ",{"$f":"F53","v":0}]
[10,"БРАВАРСКИ РАБОТИ",{"$f":"F58","v":0}]
[11,"ЛИМАРСКИ РАБОТИ",0]
[12,"ЗАШТИТНА ОГРАДА",{"$f":"F74","v":0}]
[13,"ДРУГИ РАБОТИ",{"$f":"F79","v":0}]
["СЕ ВКУПНО:",null,{"$f":"SUM(C91:C103)","v":0}]

{"sheet":"6. Upravna Kukja","index":6,"n_rows":28,"n_cols":6,"rows_kept":28,"cut":false,"hidden":false,"merged":[[23,2,23,4],[26,2,26,4],[27,0,27,4],[1,0,1,5],[2,0,2,5],[6,2,6,4],[12,2,12,4],[16,2,16,4],[20,2,20,4]]}
[]
["ПРЕДМЕР СО ПРЕСМЕТКА"]
["УПРАВНА КУЌА"]
[null,"1. ПОДГОТВИТЕЛНИ РАБОТИ"]
["1.1.","Геодетско обележување и исколчување на објектот според сите технички нормативи за ваков тип на работи.","м2",7.3,null,{"$f":"D5*E5","v":0}]
[]
[null,null,"Вкупно 1. :",null,null,{"$f":"SUM(F5:F6)","v":0}]
[null,"2. ЗЕМЈАНИ РАБОТИ"]
["2.1.","Ископ на земја III категорија во тесен ископ со длабочина до кота -0,50м, за изведба на а.б.платформа со одстранување, утовар и транспорт на градежниот шут до депонија до 20км со истовар. ","        "]
[null,"Рачен ископ: 3,65 м3 ","м3",3.65,null,{"$f":"SUM(D10*E10)","v":0}]
["2.2.","Фино планирање на дното на ископот за објектот, со валирање, соодветно набивање и потребно испитување на збиеноста на тлото.","м2",{"$f":"2.6*2.6","v":6.7600000000000007},null,{"$f":"D11*E11","v":0}]
["2.3.","Набавка на материјал, транспорт и поставување на слој од набиен чакал како подлога за темелење на објектот, со дебелина од 30см, Ø16-32мм, со потребно набивање и испитување на збиеноста и носивоста.   ","м3",{"$f":"D11*0.3","v":2.028},null,{"$f":"D12*E12","v":0}]
[null,null,"Вкупно 2. :",null,null,{"$f":"SUM(F10+F11+F12)","v":0}]
[null,"3. БЕТОНСКИ И АРМИРАНО БЕТОНСКИ РАБОТИ"]
["3.1.","Набавка на материјал, транспорт и бетонирање на подлога за изведба на платформа на објектот, од посен бетон МБ20, со дебелина од 10см, поставен на кота -0.30м, со потребно нивелирање.","м3",{"$f":"0.1*D11","v":0.67600000000000016},null,{"$f":"D15*E15","v":0}]
["3.2.","Набавка на материјал, транспорт, оплатирање со глатка оплата и бетонирање на армирано бетонска платформа со бетон МБ30, со дебелина 20см, поставена на кота                                                                -0.10м, со потребно нивелирање.","м3",{"$f":"0.2*D11","v":1.3520000000000003},null,{"$f":"D16*E16","v":0}]
[null,null,"Вкупно 3. :",null,null,{"$f":"SUM(F15+F16)","v":0}]
[null,"4. АРМИРАЧКИ РАБОТИ"]
["4.1.","Набавка на материјал, транспорт, истегнување, чистење, сечење, виткање поставување и врзување на мрежаста арматура во горна и долна зона од платформата."]
[null,"Мрежаста арматура Q335: 35kg","кг",40,null,{"$f":"SUM(D20*E20)","v":0}]
[null,null,"Вкупно 4. :",null,null,{"$f":"SUM(F20)","v":0}]
[null,"5. ПРЕФАБРИКУВАН ЕЛЕМЕНТ "]
["5.1.","Набавка транспорт и монтажа на монтажно демонтажен контејнер со пропратна опрема со димензии 200/200/260см. Контејнерот е изработен од носечка челична конструкција со дебелина на профил од 4мм поставена по краевите на контејнерот премачкана со антикорозивна заштита. Како секундарна конструкција се користат “C” челични профили со дебелина од 3мм.\nЅидовите и покривот на контејнерот се изработуваат од поцинкуван лим со дебелина од 0,5мм поставен од двете страни на секундарната конструкција на контејнерот. Помеѓу секундарната конструкција се поставува изолација од полиуретанска пена д=50мм. \nПодот на контејнерот е составен од носива челична конструкција на која е поставен поцинкуван лим д=0,5мм, изолација од камена волна со дебелина од 50мм, ПЕ фолија, водоотпорна иверица д=25мм.Како завршен под има подлога за ламинат д=0,5мм и водоотпорен ламинат со дебелина од 7мм.\nСтоларијата ја сочинуваат една надворешна врата изработенa од PVC профили. Изработени со колорит соодветен на RAL9010.\n ","парче",1,null,{"$f":"D23*E23","v":0}]
[null,null,"Вкупно 5. :",null,null,{"$f":"SUM(F23)","v":0}]
[null,"6. ОСТАНАТИ РАБОТИ"]
["6.1.","Набавка, транспорт и вградување на порцеланско лавабо 450 мм, комплет со пониклувана ѕидна чешма и инсталација за довод и одвод на вода","парче",1,null,{"$f":"D26*E26","v":0}]
[null,null,"Вкупно 6. :",null,null,{"$f":"SUM(F26)","v":0}]
["ВКУПНО ЗА КОНТРОЛНА КУЌИЧКА : ",{"$nulls":4},{"$f":"SUM(F7+F13+F21+F17+F24+F27)","v":0}]

{"sheet":"7. Fekalna","index":7,"n_rows":20,"n_cols":6,"rows_kept":20,"cut":false,"hidden":false,"merged":[[0,0,0,5],[1,0,1,5],[4,0,6,0],[16,0,18,0],[19,0,19,4]]}
["ПРЕДМЕР СО ПРЕСМЕТКА"]
["ФЕКАЛНА КАНАЛИЗАЦИЈА"]
["Ред. Бр.","ОПИС НА ПОЗИЦИЈАТА ","Единечна мера","Количина","Единечна цена","Вкупно"]
[1,"Обележување траса на ров за ископ","m'",40.590000000000003,null,{"$f":"D4*E4","v":0}]
[2,"Комбиниран ископ на земја од III и IV категорија, за положување на цевковод и поставување на шахти во ров со ширина до 0.80м и длабочина од                        0-2.0м                                                         вкупно V=37,59 м3 од тоа:                                                             "," "," ",null," "]
[null,"машински 80%","m3",{"$f":"0.8*37.59","v":30.072000000000003},null,{"$f":"D6*E6","v":0}]
[null,"рачен 20%","m3",{"$f":"0.2*37.59","v":7.5180000000000007},null,{"$f":"D7*E7","v":0}]
[3,"Подградување на страните на ровот со подграда за среден притисок ","m2",60,null,{"$f":"D8*E8","v":0}]
[4,"Планирање на дното на ровот точност +-2см","m2",{"$f":"D4*0.8","v":32.472000000000001},null,{"$f":"D9*E9","v":0}]
[5,"Набавка и распостелување на песок по дно на ровот во дебелина од 10cm.","m3",3.25,null,0]
[6,"Затрупување на ровот во слоеви до 30 cm над темето на цевката со песок, со рачно набивање.","m3",{"$f":"D4*0.8*0.5","v":16.236000000000001},null,0]
[7,"Дозатрупување на ровот во слоеви од 30cm со чакалесто песоклив материјал од наоѓалиште  (природен или дробеник), со рачно или машинско набивање.","m3",{"$f":"37.59-(D11+D10)","v":18.104000000000003},null,0]
[8,"Ископ за проширување на ровот за шахти во земја III и IV категорија на длабина до  4.0m со одлагање на материјалот на определено растојание покрај ровот.","m3",{"$f":"(1*2*1)*5","v":10},null,{"$f":"E13*D13","v":0}]
[9,"Набавка и вградување на армиранобетонски ревизиони шахти со средна висина од H=1.10м заедно со лиено железен капак G=160 кг за тежок сообраќај и качувалки на претходно подготвена подлога од 10cm песок.","парче",5,null,0]
[10,"Затрупување на просторот околу шахтите со чакалесто песоклив материјал   или дробен кам. материјал  со набивање во слоеви ","m3",{"$f":"D13/2","v":5},null,{"$f":"E15*D15","v":0}]
[11,"Одвоз на вишок земја од ископ во депонија на одалеченост од 10км","m3",{"$f":"D6+D7+D15","v":42.59},null,{"$f":"D16*E16","v":0}]
[12,"Набавка, трансапорт и вградување на коругирани PЕ канализациони цевки SN8, согласно EN13476 - 3 за улична канализација со хидрауличко испитување"," "," ",null," "]
[null,"OD/ID 315/285мм","m'",27.82,null,{"$f":"D18*E18","v":0}]
[null,"OD/ID 160/138мм","m'",14.77,null,{"$f":"D19*E19","v":0}]
["Вкупно фекална канализација:",{"$nulls":4},{"$f":"SUM(F4:F19)","v":0}]

{"sheet":"8. Elektrika","index":8,"n_rows":66,"n_cols":6,"rows_kept":66,"cut":false,"hidden":false,"merged":[]}
{"$rows_empty":10}
["Позиција","ОПИС НА РАБОТИ","Единечна цена","Количина","Единечна цена во ДЕН (без ДДВ)","Вкупна цена во ДЕН\n (без ДДВ)"]
[1,2,3,4,5,6]
[]
[null,"ПРЕДМЕР И ПРЕСМЕТКА"]
[null,"за електрични инсталации за"]
[null,{"$f":"#REF!","v":{"$error":"#REF!"}}]
[]
[null,"НАПОМЕНА:"]
[null,"* За сите позиции важи набавка, испорака,"]
[null,"транспорт, складирање, монтажа и "]
[null,"поврзување, комплет со ситен помошен "]
[null,"материјал, спремно за работа."]
[null,"* За целокупната предвидена опрема "]
[null,"важи или еквивалентна."]
[]
[" ","1. ГРАДЕЖНО ЗЕМЈEНИ РАБОТИ  И ЗАШТИТА НА ПРОВОДНИЦИ"," "," "]
[1.1000000000000001,"Ископ на земјен ров во земја III и IV категорија со затрпување и набивање во слоеви од по 20cm за полагање доводни и разводни кабли. За се комплет со одведување на вишокот земја до 5km и доведување на теренот во првобитна состојба. (0,4 x 0,8 = 0,32m² х200m)","m³",64]
[1.2,"Посипување на слој на ситен кварцен песок, во дебелина од 10cm, под и над положените кабли. (0,4 x 0,2 = 0,08m² х 200m)","m³",16]
[1.3,"Поставување на заштитни коруби (ПВЦ штитници) и ПВЦ трака за предупредување \"внимание електричен кабел\", над каблите во ровот.","m",200]
[1.4,"Ископ на отвори во земја III и IV категорија, за изработка na фундаменти за метални столбови (со висина H=4m). За се комплет со одвезување на вишокот земја. Се плаќа од м³. (0,6 х 0,6 х 0,6 = 0,22m³ х 5)","m³",1.2]
[1.5,"Изведба на бетонски фундамент со бетон МБ-30 за поставување метални столбови со висина H=4m, со вградена анкер корпа и пластични цевки Ф76mm, за “влез” и “излез” на кабелот. (0,6 х 0,6 х 0,6 = 0,22m³)","пар.",5]
[1.6,"Поставување на тврда пластична цевка HDPE Φ110mm во ров, при премин на улицата за механичка заштита на каблите. Се плаќа од метар должен.","m",30]
[null,"Вкупно 1:"]
[" ","2. РАЗВОДНИ ТАБЛИ, ПРОВОДНИЦИ И НАПОЈНИ КАБЛИ "," "," "]
[2.1,"Изработка и изведување на електроенергетски приклучок, комплет со доводен кабел, електронско броило за директно мерење на активна електрична енергија и осигурувачи. Изведува ЕВН Македонија, комплет, во се според Електроенергетската согласност и новите мрежни правила. Се плаќа од број.","пар.",1]
["2.2","Набавка, испорака и полагање на кабeл за напојување на главna разводнa табла (РТ-ПС), тип:"," "]
[null,"*  NYY-Ј 5x10mm²","m'",50]
[null,"Кабeлoт се полага во земја во веќе ископан земјан ров. Се плаќа од метар должен, комплет со поврзување."," "]
["2.3","Набавка, испорака и полагање на кабeл за напојување на елементите од системот на SBR реакторот,  тип:"," "]
[null,"*  NYY-Ј 4x4mm²","m'",105]
[null,"*  NYY-Ј 4x2.5mm²","m'",90]
[null,"*  NYY-Ј 3x2.5mm²","m'",190]
[null,"*  NYY-Ј 3x1.5mm²","m'",15]
[null,"Кабeлoт се полага дел во земја во веќе ископан земјан ров и дел на ПНК регали. Се плаќа од метар должен, комплет со поврзување."," "]
[2.4,"Набавка, испорака и монтажа на перфориран носач на кабли ПНК за напојување на потрошувачите во SBR реакторот:"," "]
[null,"*  ПНК регал 200mm заедно со соодветен капак ","m'",20]
[null,"ПНК регалите се поставуваат под нагазната бетонска патека со соодветни држачи и навони вретана. Регалите треба да бидат со соодветен сертификат за квалитет. Се плаќа од метар должен, комплет со поврзување."," "]
["2.5","Поставување на тврда пластична цевка HDPE Φ23mm на ѕид со соодветни држачи впукани на ѕидот за механичка заштита на каблите. Се плаќа од метар должен.","m",30]
[null,"Вкупно 2:"]
[null,"3. ИНСТАЛАЦИИ ЗА ПАРТЕРНО ОСВЕТЛУВАЊЕ"]
["3.1","Набавка, испорака и полагање на кабeл за напојување на партерно осветлување,  тип:"," "]
[null,"*  NАYY-Ј 4x16mm²","m'",80]
[null,"Кабeлoте се полага во земја во веќе ископан земјан ров. Се плаќа од метар должен,  комплет со поврзување."," "]
["3.2","Набавка, испорака и монтажа топлопоцинкуван едносегментeн столб со висина H=4m, опремен со разводна кутија со степен на заштита IP44-IK08, соодветен број автоматски осигурувачи C10,1р, клеми за „влез-излез“ на кабел од 16mm², ожичен до светилка со NYY3x1,5mm² за напојување на светилката.  Анкерните завртки да се залијат со врел битумен. За се комплет заедно со монтажа се плаќа од број.","пар.",5]
["3.3","Светлосна арматура за партерно осветлување поставена дирекно на столб. Светилки со висока ефикасност, со конусно цилиндрична форма изработена од опален дифузор, извор на светлина 16 високоефикасни LED диоди, моќост од 26W и степен на заштита IP66, IK10. ","пар.",5]
[null,"Вкупно 3:"]
[null,"4. ИНСТАЛАЦИИ ЗА ЗАШТИТНО ЗАЗЕМЈУВАЊЕ "]
["4.1","Испорака и полагање во темелите на објектот, FeZn-30x4mm трака за заемјување до мерен спој. Траката да се завари со арматурата на објектот на скои 2-3m. Се плаќа од метар доллжен, за се комплет со поврзување. ","m'",85]
["4.2","Испорака и монтажа во ров поцинкувана трака FeZn-25x4mm за изведување на здружен заземјувач и заземјување на метални маси (столбови, нагазни решетки, контејнери и сл.). се положува паралелно со енергетските кабли за напојување на разводните ормари за напојување на посебните објекти од комплексот како и партерно освертлување. Се плаќа од метар доллжен, за се комплет со поврзување. ","m'",110]
["4.3","Набавка, испорака и поврзување вкрсно парче MKS.N.B2.936, залиено со врел битумен. \nСе плаќа од број.","пар.",18]
["4.4","Испитување на инсталацијата, пуштање во работа и мерење на отпорот за заземјување комплет со атест од овластена организација акредитирана од Министерство за економија на РМ, преглед на целокупната инсталација и предавање на истата на инвеститорот.","паушал",1]
[null,"Вкупно 4:"]
[" ","5. ИСПИТУВАЊА И ТЕХНИЧКА ДОКУМЕНТАЦИЈА"," "," "]
["5.1","Испитување на исправноста на електричните инсталации, со мерење на непрекинатост на струен круг, отпор изолација, отпор на заземјување  и издавање на атест од акредитирана институција.","пар.",1]
["5.2","Изработка на проект на изведена состојба, заверен од фирма со соодветни овластувања.","пар.",1]
[null,"Вкупно 5:"]

{"sheet":"9. Avtomatika","index":9,"n_rows":52,"n_cols":7,"rows_kept":52,"cut":false,"hidden":false,"merged":[[0,1,0,6],[2,1,2,4]]}
[null,"AВТОМАТИКА"]
[]
[null,"Предмер  и пресметка ",null,null,null,"ед. цена","вк. цена"]
[null,1,"МОТОРНА ЗАШТИТА       7-10А",1,"ком.",null,{"$f":"F4*D4","v":0}]
[null,2,"МОТОРНА ЗАШТИТА        4-6 А",2,"ком.",null,{"$f":"F5*D5","v":0}]
[null,3,"МОТОРНА ЗАШТИТА         2-4 А",9,"ком.",null,0]
[null,6,"КОНТАКТОРИ     3  kW",13,"ком.",null,0]
[null,7,"ГРЕБЕНИ    1-0-2     еднополни    комплет",12,"ком.",null,0]
[null,8,"ГРЕБЕНИ    1-0   еднополни    комплет",1,"ком.",null,0]
[null,9,"АВТОМАТСКИ ОСИГУРАЧИ карактер C  3p   50 А",2,"ком.",null,0]
[null,10,"АВТОМАТСКИ ОСИГУРАЧИ карактер B  1p  10 А",3,"ком.",null,0]
[null,12,"АВТОМАТСКИ ОСИГУРАЧИ карактер C   1p 6 А",1,"ком.",null,0]
[null,13,"ПРЕНАПОНСКА ЗАШТИТА СО катоден одводник                             комплет со 35 А осигурач",1,"ком.",null,0]
[null,14,"ЛЕД ДИОДИ     ЗЕЛЕНИ /ЦРВЕНИ  L-59EGW",16,"ком.",null,0]
[null,15,"КУЌИШТЕ ЗА ЛЕД ДИОДИ   CLIP5MM",16,"ком.",null,0]
[null,16,"ОТПОРНИЦИ ЗА ЛЕД ДИОДИ    24 V  3K9    0,25 W  ",30,"ком.",null,0]
[null,17,"ТРАФО 230 V  AC  /  24 V AC",1,"ком.",null,0]
[null,18,"ТРАФО 230 V  AC  /  24 V DC",1,"ком.",null,0]
[null,19,"ПОМОШНИ РЕЛЕИ    4p  220 V AC",15,"ком.",null,0]
[null,20,"ПОМОШНИ РЕЛЕИ    4p  24 V  AC",5,"ком.",null,0]
[null,21,"ПОСТОЛЈЕ ЗА ПОМОШНИ РЕЛЕИ    4p  ",20,"ком.",null,0]
[null,22,"ТАЈМЕРИ 24/15",2,"ком.",null,0]
[null,23,"ВРЕМЕНСКИ РЕЛЕИ   трепкачки",3,"ком.",null,0]
[null,24,"ВРЕМЕНСКИ РЕЛЕИ  мултифункционални",7,"ком.",null,0]
[null,25,"КЛЕМА   3P+N  63 А   ",1,"ком.",null,0]
[null,26,"ПРОВОДНИК  P/F   4 mm",20,"мет.",null,0]
[null,27,"ПРОВОДНИК  P/F   2,5 mm",50,"мет.",null,0]
[null,28,"ПРОВОДНИК  P/F   1,5 mm",100,"мет.",null,0]
[null,29,"ПРОВОДНИК  P/F   0,75 mm",50,"мет.",null,0]
[null,30,"КЛЕМИ ДО      4 mm",60,"ком.",null,0]
[null,31,"КЛЕМИ  ЗА НУЛА    ДО      4 mm",20,"ком.",null,0]
[null,32,"КЛЕМИ  ЗА МАСА  ДО      4 mm",20,"ком.",null,0]
[null,33,"ГРАНИЧНИЦИ ЗА  КЛЕМИ    ДО      4 mm",30,"ком.",null,0]
[null,34,"КРАЈНА ЗАТЕГА ЗА  КЛЕМИ",30,"ком.",null,0]
[null,35,"ЗАВРШНИЦИ  ( тулци )  4 mm ",100,"ком.",null,0]
[null,36,"ЗАВРШНИЦИ  ( тулци )  2,5 mm ",200,"ком.",null,0]
[null,37,"ДУПЛИ ЗАВРШНИЦИ (тулци)  2,5 mm",100,"ком.",null,0]
[null,38,"ЗАВРШНИЦИ  ( тулци )  1,5 mm ",500,"ком.",null,0]
[null,39,"ДУПЛИ ЗАВРШНИЦИ (тулци)  1,5 mm",300,"ком.",null,0]
[null,40,"ЗАВРШНИЦИ  ( тулци )  0,75 mm ",200,"ком.",null,0]
[null,41,"ДУПЛИ ЗАВРШНИЦИ (тулци)  0,75 mm",200,"ком.",null,0]
[null,42,"ВЕЗИЦИ   (шпагети )  10 cm",200,"ком.",null,0]
[null,43,"ВЕЗИЦИ   (шпагети )  15 cm",200,"ком.",null,0]
[null,44,"ВЕЗИЦИ   (шпагети )  20 cm",200,"ком.",null,0]
[null,45,"ИЗОЛИР ",2,"ком.",null,0]
[null,46,"ШИНИ ЗА ОСИГУРАЧИ",4,"мет.",null,0]
[null,47,"ПЕРФОРИРАНИ  КАНАЛНИЦИ   40 Х  60 mm",8,"мет.",null,0]
[null,49,"УВОДНИЦИ   13,5",20,"ком.",null,{"$f":"F48*D48","v":0}]
[null,50,"УВОДНИЦИ  16",20,"ком.",null,0]
[null,51,"УВОДНИЦИ  25",2,"ком.",null,0]
[null,52,"ОРМАР    800  Х  600  Х  260",1,"ком.",null,{"$f":"F51*D51","v":0}]
[{"$nulls":5},"Вкупно:",{"$f":"SUM(G4:G51)","v":0}]